bitfinex/quotes_BTCUSD_20250829
["timestamp","ask_amount","ask_price","bid_price","bid_amount"]
[1756458894301,1.79302371,109800.0,109790.0,0.00525001]
[1756458894727,0.7543985,109800.0,109790.0,0.00525001]
[1756458894942,2.83164892,109800.0,109790.0,0.00525001]
[1756458895333,2.80623398,109800.0,109790.0,0.00525001]
[1756458895533,2.83165752,109800.0,109790.0,0.00525001]
[1756458895946,2.83165682,109800.0,109790.0,0.00525001]
[1756458898574,0.7544064,109800.0,109790.0,0.00525001]
[1756458898774,2.83165682,109800.0,109790.0,0.00525001]
[1756458898979,2.83363682,109800.0,109790.0,0.00525001]
[1756458899212,2.92193314,109800.0,109790.0,0.00525001]
[1756458899627,2.92193314,109800.0,109790.0,1e-08]
[1756458899833,3.03214877,109800.0,109790.0,1e-08]
[1756458901100,3.03314877,109800.0,109790.0,1e-08]
[1756458902101,3.03414877,109800.0,109790.0,1e-08]
[1756458902503,2.87175877,109800.0,109790.0,1e-08]
[1756458902709,2.86977877,109800.0,109790.0,0.00525001]
[1756458902907,2.69318613,109800.0,109790.0,0.00525001]
[1756458903125,1.81448092,109800.0,109790.0,0.00525001]
[1756458903325,2.85310613,109800.0,109790.0,0.00525001]
[1756458903536,1.81448092,109800.0,109790.0,0.00525001]
[1756458903725,2.85310613,109800.0,109790.0,0.00525001]
[1756458903926,2.94338245,109800.0,109790.0,0.00525001]
[1756458904134,2.94238245,109800.0,109790.0,1e-08]
[1756458904540,2.94138245,109800.0,109790.0,1e-08]
[1756458904744,2.91595942,109800.0,109790.0,1e-08]
[1756458904969,2.94139709,109800.0,109790.0,1e-08]
[1756458905453,2.94139716,109800.0,109790.0,1e-08]
[1756458906416,2.94139716,109800.0,109790.0,0.00314001]
[1756458906631,2.94139716,109800.0,109790.0,0.00525001]
[1756458907876,2.94139716,109800.0,109790.0,1e-08]
[1756458908077,3.03207348,109800.0,109790.0,1e-08]
[1756458909256,3.03307348,109800.0,109790.0,1e-08]
[1756458909433,3.03407348,109800.0,109790.0,1e-08]
[1756458909974,3.03169348,109800.0,109790.0,1e-08]
[1756458911202,3.4947323,109800.0,109790.0,1e-08]
[1756458912004,3.49472794,109800.0,109790.0,1e-08]
[1756458913364,3.49710794,109800.0,109790.0,1e-08]
[1756458914910,3.49710794,109800.0,109770.0,0.00314]
[1756458915133,1.24174657,109780.0,109770.0,0.00318742]
[1756458915343,1.47794524,109780.0,109770.0,0.00318742]
[1756458915553,1.53275339,109780.0,109770.0,0.00529742]
[1756458915759,0.49412818,109780.0,109770.0,0.00529742]
[1756458915963,1.53076335,109780.0,109770.0,0.00529742]
[1756458916606,0.49213814,109780.0,109770.0,0.00529742]
[1756458916849,1.53076335,109780.0,109770.0,0.00729742]
[1756458918230,1.53076335,109780.0,109770.0,0.00829742]
[1756458919297,0.33237814,109780.0,109770.0,0.00829742]
[1756458919493,1.53072335,109780.0,109770.0,0.00829742]
[1756458921522,1.53068335,109780.0,109770.0,0.00829742]
[1756458923280,1.30092335,109780.0,109770.0,0.00829742]
[1756458923495,1.46056335,109780.0,109770.0,0.00829742]
[1756458925131,0.42193814,109780.0,109770.0,0.00829742]
[1756458925568,1.46056335,109780.0,109770.0,0.00829742]
[1756458926183,1.46056137,109780.0,109770.0,0.00829742]
[1756458926799,1.30092137,109780.0,109770.0,0.00829742]
[1756458927137,1.46052137,109780.0,109770.0,0.00829742]
[1756458929882,1.30092137,109780.0,109770.0,0.00829742]
[1756458930095,1.46048137,109780.0,109770.0,0.00829742]
[1756458933066,1.46246137,109780.0,109770.0,0.00802742]
[1756458933697,1.46048137,109780.0,109770.0,0.00802742]
[1756458934062,1.46246137,109780.0,109770.0,0.00304742]
[1756458934871,1.46246295,109780.0,109770.0,0.00304742]
[1756458936735,1.43915815,109780.0,109770.0,0.00304742]
[1756458936942,1.46246874,109780.0,109770.0,0.00304742]
[1756458939758,1.46246874,109780.0,109770.0,0.00601742]
[1756458940179,1.30290874,109780.0,109770.0,0.00601742]
[1756458940387,1.46238874,109780.0,109770.0,0.00304742]
[1756458940631,1.46238988,109780.0,109770.0,0.00304742]
[1756458942743,1.5506862,109780.0,109770.0,0.00304742]
[1756458942956,1.5530762,109780.0,109770.0,0.00304742]
[1756458943219,1.5506862,109780.0,109770.0,0.00304742]
[1756458944963,1.46230988,109780.0,109770.0,0.00304742]
[1756458945598,0.42170467,109780.0,109770.0,0.00802742]
[1756458945812,1.46230988,109780.0,109770.0,0.00802742]
[1756458946461,1.42343765,109780.0,109770.0,0.00792742]
[1756458946678,1.26403765,109780.0,109770.0,0.00792742]
[1756458946896,0.22343244,109780.0,109770.0,0.00792742]
[1756458947108,0.21397085,109780.0,109770.0,0.09850122]
[1756458947345,1.25259606,109780.0,109770.0,0.09850122]
[1756458947565,1.23776091,109780.0,109770.0,0.09850122]
[1756458947784,1.25260657,109780.0,109770.0,0.28070036]
[1756458947990,1.25260657,109780.0,109770.0,0.27842288]
[1756458949020,1.41196657,109780.0,109770.0,0.27842288]
[1756458949353,1.40560597,109780.0,109770.0,0.27842288]
[1756458949569,0.20762076,109780.0,109770.0,0.27842288]
[1756458949778,1.24624597,109780.0,109770.0,0.27842288]
[1756458950000,0.20762076,109780.0,109770.0,0.27842288]
[1756458950837,1.24624597,109780.0,109770.0,0.09622374]
[1756458951045,1.24624597,109780.0,109770.0,0.09850122]
[1756458951250,0.20762076,109780.0,109770.0,0.09850122]
[1756458951455,1.40556597,109780.0,109770.0,0.09850122]
[1756458951687,1.41390138,109780.0,109770.0,0.09622374]
[1756458952450,0.37329617,109780.0,109770.0,0.09622374]
[1756458952973,1.41192138,109780.0,109770.0,0.09622374]
[1756458953120,1.41191433,109780.0,109770.0,0.09622374]
[1756458956017,1.41389433,109780.0,109770.0,0.09622374]
[1756458956227,0.37328912,109780.0,109770.0,0.09622374]
[1756458956430,1.25259433,109780.0,109770.0,0.09622374]
[1756458956689,1.41183433,109780.0,109770.0,0.09622374]
[1756458958435,1.41181994,109780.0,109770.0,0.09622374]
[1756458958887,1.41182014,109780.0,109770.0,0.09622374]
[1756458959525,1.41380014,109780.0,109770.0,0.09124374]
[1756458959741,1.41380014,109780.0,109770.0,0.09622374]
[1756458960158,0.37517493,109780.0,109770.0,0.09622374]
[1756458960361,1.41380014,109780.0,109770.0,0.09423374]
[1756458960567,1.41380014,109780.0,109770.0,0.09323374]
[1756458960767,1.41178014,109780.0,109770.0,0.09622374]
[1756458961234,1.25258014,109780.0,109770.0,0.09622374]
[1756458961464,1.41178014,109780.0,109770.0,0.09622374]
[1756458961686,0.03177239,109780.0,109770.0,0.28070036]
[1756458961908,0.19523605,109800.0,109780.0,0.18217921]
[1756458962166,1.25928417,109800.0,109790.0,0.08829632]
[1756458962382,1.40149556,109800.0,109790.0,0.09327632]
[1756458962630,0.36287035,109800.0,109790.0,0.09327632]
[1756458962834,1.40149556,109800.0,109790.0,0.27544227]
[1756458963041,1.40347556,109800.0,109790.0,0.09327632]
[1756458963264,1.40447556,109800.0,109790.0,0.09327632]
[1756458963526,1.42240895,109800.0,109790.0,0.09327632]
[1756458963740,0.36585035,109800.0,109790.0,0.09327632]
[1756458963956,1.4224088,109800.0,109790.0,0.08829632]
[1756458964163,1.42875865,109800.0,109790.0,0.08829632]
[1756458964346,1.4224088,109800.0,109790.0,0.08829632]
[1756458964516,0.36685035,109800.0,109790.0,0.08829632]
[1756458964728,1.40547556,109800.0,109790.0,0.08829632]
[1756458964897,1.40447556,109800.0,109790.0,0.08829632]
[1756458965100,1.40347556,109800.0,109790.0,0.08829632]
[1756458965301,1.40447556,109800.0,109790.0,0.08829632]
[1756458965502,0.18216595,109790.0,109780.0,0.00299]
[1756458965709,1.37991116,109790.0,109780.0,0.27346886]
[1756458965910,1.37991116,109790.0,109780.0,0.27545886]
[1756458966127,0.34128595,109790.0,109780.0,0.27545886]
[1756458966329,0.34128595,109790.0,109780.0,0.09327632]
[1756458966330,1.37991116,109790.0,109780.0,0.09327632]
[1756458966530,1.37991116,109790.0,109780.0,0.27545886]
[1756458966859,1.37991116,109790.0,109780.0,0.09327632]
[1756458967066,1.37991116,109790.0,109780.0,0.27545886]
[1756458967276,1.37991116,109790.0,109780.0,0.27745886]
[1756458967596,1.39298126,109800.0,109780.0,0.27745886]
[1756458967801,1.39298126,109800.0,109790.0,0.09356339]
[1756458967802,1.40144377,109800.0,109790.0,0.09356339]
[1756458968001,0.20369856,109800.0,109790.0,0.27544227]
[1756458968213,1.40140377,109800.0,109790.0,0.27544227]
[1756458969322,1.40338377,109800.0,109790.0,0.09327632]
[1756458969553,1.40338377,109800.0,109790.0,0.09427632]
[1756458969733,1.40338377,109800.0,109790.0,0.09328632]
[1756458970133,1.40338377,109800.0,109790.0,0.09527632]
[1756458971495,1.40338377,109800.0,109790.0,0.09029632]
[1756458971699,1.40577377,109800.0,109790.0,0.002]
[1756458971904,1.40338377,109800.0,109790.0,0.002]
[1756458973291,1.24430377,109800.0,109790.0,0.002]
[1756458973502,1.40334377,109800.0,109790.0,0.00698]
[1756458974425,1.24430377,109800.0,109790.0,0.00698]
[1756458974838,1.40330377,109800.0,109790.0,0.00698]
[1756458975778,0.20369856,109800.0,109790.0,0.18914595]
[1756458975908,1.40132377,109800.0,109790.0,0.27744227]
[1756458976129,1.40128377,109800.0,109790.0,0.27744227]
[1756458976732,1.24232377,109800.0,109790.0,0.27744227]
[1756458976933,1.40128377,109800.0,109790.0,0.27744227]
[1756458978591,1.4012836,109800.0,109790.0,0.27744227]
[1756458979564,1.2423236,109800.0,109790.0,0.27744227]
[1756458979773,1.05171053,109800.0,109790.0,0.27744227]
[1756458980160,0.62871812,109820.0,109800.0,0.18214936]
[1756458980365,1.71066906,109820.0,109800.0,0.27354568]
[1756458980621,1.37967798,109810.0,109800.0,0.27354568]
[1756458980781,1.38814089,109810.0,109800.0,0.27563568]
[1756458982395,0.34951568,109810.0,109800.0,0.27563568]
[1756458982617,0.19059568,109810.0,109800.0,0.27563568]
[1756458982818,1.03862521,109810.0,109800.0,0.27563568]
[1756458983654,0.36176094,109820.0,109810.0,0.18213277]
[1756458983869,1.05867642,109820.0,109810.0,0.27561909]
[1756458984076,1.40165261,109820.0,109810.0,0.27352909]
[1756458984281,1.40165261,109820.0,109810.0,0.27561909]
[1756458984482,0.15888,109820.0,109810.0,0.27561909]
[1756458984689,1.3796214,109820.0,109810.0,0.27561909]
[1756458984897,1.3796214,109820.0,109810.0,0.27566702]
[1756458985551,1.3796214,109820.0,109810.0,0.27666702]
[1756458985769,1.39102858,109820.0,109810.0,0.27766702]
[1756458985986,1.39300858,109820.0,109810.0,0.09034425]
[1756458987746,1.39538858,109820.0,109810.0,0.00204793]
[1756458988375,1.39300858,109820.0,109810.0,0.00204793]
[1756458988582,0.19352337,109820.0,109810.0,0.1893707]
[1756458988840,1.39098858,109820.0,109810.0,0.1893707]
[1756458989053,1.05003239,109820.0,109810.0,0.27766702]
[1756458989251,1.23214858,109820.0,109810.0,0.27766702]
[1756458989875,1.23214858,109820.0,109810.0,0.43646702]
[1756458990219,1.39094858,109820.0,109810.0,0.27766702]
[1756458990426,1.39292858,109820.0,109810.0,0.09553425]
[1756458990633,1.39292858,109820.0,109810.0,0.09034425]
[1756458990838,0.35430337,109820.0,109810.0,0.09034425]
[1756458991046,1.39292858,109820.0,109810.0,0.09034425]
[1756458991689,0.35430337,109820.0,109810.0,0.09034425]
[1756458991837,1.39292858,109820.0,109810.0,0.09034425]
[1756458992038,1.39292858,109820.0,109810.0,0.27557702]
[1756458992234,1.39292858,109820.0,109810.0,0.27766702]
[1756458992567,1.23412858,109820.0,109810.0,0.27766702]
[1756458992772,0.7829996,109830.0,109820.0,0.18211619]
[1756458992996,1.22072481,109830.0,109820.0,0.43436251]
[1756458993166,1.37948481,109830.0,109820.0,0.09348632]
[1756458993367,0.3408596,109830.0,109820.0,0.27787896]
[1756458993586,0.3408596,109830.0,109820.0,0.27560251]
[1756458993732,1.22072481,109830.0,109820.0,0.27560251]
[1756458994148,0.1820996,109830.0,109820.0,0.27560251]
[1756458994355,1.22072481,109830.0,109820.0,0.27564251]
[1756458996008,1.22072481,109830.0,109820.0,0.27864251]
[1756458996209,0.1820996,109830.0,109820.0,0.27864251]
[1756458996423,0.20226534,109830.0,109820.0,0.27864251]
[1756458996629,1.24089055,109830.0,109820.0,0.27864251]
[1756458997067,0.20226534,109830.0,109820.0,0.27864251]
[1756458997281,1.24089055,109830.0,109820.0,0.27864251]
[1756458997487,0.0084571,109830.0,109820.0,0.27964251]
[1756458998104,0.0084571,109830.0,109820.0,0.30601951]
[1756458998409,0.0084571,109830.0,109820.0,0.30801951]
[1756459000026,0.19344111,109840.0,109830.0,0.1820996]
[1756459000263,1.24052015,109840.0,109830.0,0.43426592]
[1756459000471,0.00845383,109840.0,109830.0,0.43426592]
[1756459001075,0.00845383,109840.0,109830.0,0.43526592]
[1756459001994,1.23114206,109840.0,109830.0,0.43626592]
[1756459003620,1.04905441,109840.0,109830.0,0.43626592]
[1756459003743,1.04707441,109840.0,109830.0,0.43626592]
[1756459004183,1.04707441,109840.0,109830.0,0.43630592]
[1756459004386,1.06741072,109840.0,109830.0,0.43630592]
[1756459004737,1.06741072,109840.0,109830.0,0.43626592]
[1756459004881,1.04707441,109840.0,109830.0,0.43626592]
[1756459007023,1.04707218,109840.0,109830.0,0.43626592]
[1756459007234,0.00844697,109840.0,109830.0,0.43626592]
[1756459007435,1.04707218,109840.0,109830.0,0.43626592]
[1756459008129,1.2291552,109840.0,109830.0,0.43626592]
[1756459008439,1.2291552,109840.0,109830.0,0.27762592]
[1756459008645,1.2311352,109840.0,109830.0,0.43622592]
[1756459009008,1.04905218,109840.0,109830.0,0.43622592]
[1756459009207,1.04707218,109840.0,109830.0,0.43622592]
[1756459009405,1.2291552,109840.0,109830.0,0.27762592]
[1756459009612,1.2291552,109840.0,109830.0,0.43618592]
[1756459010642,1.22070823,109840.0,109830.0,0.43618592]
[1756459010858,1.04707339,109840.0,109830.0,0.43618592]
[1756459011010,1.22915641,109840.0,109830.0,0.43618592]
[1756459011235,1.04707339,109840.0,109830.0,0.43618592]
[1756459011627,0.00844818,109840.0,109830.0,0.43618592]
[1756459011824,1.04707339,109840.0,109830.0,0.43618592]
[1756459012690,0.00844818,109840.0,109830.0,0.43618592]
[1756459017213,0.027372,109870.0,109860.0,0.18204988]
[1756459017465,0.03582278,109870.0,109860.0,0.2753062]
[1756459017606,0.00845078,109870.0,109860.0,0.09325632]
[1756459017806,0.01043078,109870.0,109860.0,0.4337862]
[1756459018372,0.01090742,109870.0,109860.0,0.4337862]
[1756459018789,0.00892742,109870.0,109860.0,0.4337862]
[1756459019649,0.01090742,109870.0,109860.0,0.4347862]
[1756459019857,0.00892742,109870.0,109860.0,0.2773062]
[1756459020059,0.00892742,109870.0,109860.0,0.4357462]
[1756459020521,0.35376073,109870.0,109860.0,0.09029632]
[1756459020752,1.39238594,109870.0,109860.0,0.09029632]
[1756459021160,1.40926367,109870.0,109860.0,0.09029632]
[1756459021359,0.37063846,109870.0,109860.0,0.09029632]
[1756459021578,1.25082507,109870.0,109860.0,0.2723462]
[1756459021779,1.39233956,109870.0,109860.0,0.2723462]
[1756459021982,1.23169956,109870.0,109860.0,0.2723462]
[1756459022174,1.39009956,109870.0,109860.0,0.2723462]
[1756459022388,1.39009956,109870.0,109860.0,0.2743262]
[1756459022389,0.19307435,109870.0,109860.0,0.2743262]
[1756459022594,0.00892104,109870.0,109860.0,0.2773062]
[1756459023124,1.23287212,109870.0,109860.0,0.09029632]
[1756459023334,1.23393956,109870.0,109860.0,0.09029632]
[1756459023538,1.23169956,109870.0,109860.0,0.2723462]
[1756459023744,1.23155956,109870.0,109860.0,0.2723462]
[1756459023997,1.38995956,109870.0,109860.0,0.09029632]
[1756459024425,1.24844904,109870.0,109860.0,0.2723462]
[1756459024602,0.02581052,109870.0,109860.0,0.2743262]
[1756459024806,0.02581052,109870.0,109860.0,0.2773062]
[1756459025000,0.20784383,109870.0,109860.0,0.2773062]
[1756459025205,0.02581052,109870.0,109860.0,0.2773062]
[1756459025589,1.24844904,109870.0,109860.0,0.2723462]
[1756459025984,1.06641573,109870.0,109860.0,0.2723462]
[1756459026210,0.02779052,109870.0,109860.0,0.2723462]
[1756459026436,0.02581052,109870.0,109860.0,0.2773062]
[1756459028146,0.02581052,109870.0,109860.0,1.31593141]
[1756459028389,0.02581052,109870.0,109860.0,0.2773062]
[1756459030845,0.01736612,109870.0,109860.0,0.2773062]
[1756459031052,0.02578663,109870.0,109860.0,0.2773062]
[1756459033611,0.02578663,109870.0,109860.0,1.47425141]
[1756459033810,0.02578663,109870.0,109860.0,0.4629882]
[1756459034263,0.02578663,109870.0,109860.0,1.50161341]
[1756459034484,0.0089133,109870.0,109860.0,1.50161341]
[1756459034955,0.02578054,109870.0,109860.0,1.50161341]
[1756459035378,0.0257808,109870.0,109860.0,0.4629882]
[1756459036230,0.0089133,109870.0,109860.0,0.4629882]
[1756459037121,0.0089133,109870.0,109860.0,0.4355862]
[1756459037547,1.06440664,109870.0,109860.0,0.4355862]
[1756459037900,1.06440664,109870.0,109860.0,0.2773062]
[1756459038126,1.06440664,109870.0,109860.0,0.4355862]
[1756459038480,1.24839995,109870.0,109860.0,0.2723462]
[1756459038721,1.24839995,109870.0,109860.0,0.4306262]
[1756459038936,1.24839995,109870.0,109860.0,0.09029632]
[1756459039162,1.25078995,109870.0,109860.0,0.09029632]
[1756459040020,1.24839995,109870.0,109860.0,0.09029632]
[1756459040223,0.70805474,109870.0,109860.0,0.2723462]
[1756459040382,1.58839995,109870.0,109860.0,0.2723462]
[1756459040723,1.58839995,109870.0,109860.0,0.09029632]
[1756459041352,1.59078995,109870.0,109860.0,0.09029632]
[1756459041561,1.59079144,109870.0,109860.0,0.09029632]
[1756459041687,1.59080055,109870.0,109860.0,0.09029632]
[1756459041909,1.5823624,109870.0,109860.0,0.09029632]
[1756459042115,1.59080097,109870.0,109860.0,0.09029632]
[1756459042716,1.59080097,109870.0,109860.0,0.002]
[1756459043971,1.74669097,109870.0,109860.0,0.002]
[1756459044404,1.58841097,109870.0,109860.0,0.18404988]
[1756459044600,1.58841097,109870.0,109860.0,0.2776162]
[1756459044803,1.58841097,109870.0,109860.0,0.4358962]
[1756459044804,0.36579245,109870.0,109860.0,0.4358962]
[1756459045021,1.40441766,109870.0,109860.0,0.4358962]
[1756459045435,0.02579245,109870.0,109860.0,0.4358962]
[1756459045687,0.88246351,109870.0,109860.0,0.4358962]
[1756459045892,1.06645682,109870.0,109860.0,0.09029632]
[1756459046094,1.56712682,109870.0,109860.0,0.002]
[1756459046306,1.57346403,109870.0,109860.0,0.002]
[1756459046512,1.56712682,109870.0,109860.0,0.002]
[1756459046958,1.57346474,109870.0,109860.0,0.002]
[1756459047340,1.41518474,109870.0,109860.0,0.002]
[1756459047565,1.56473682,109870.0,109860.0,0.002]
[1756459050405,1.40884682,109870.0,109860.0,0.002]
[1756459050594,1.57134724,109870.0,109860.0,0.002]
[1756459050802,1.72962724,109870.0,109860.0,0.002]
[1756459051983,1.72328852,109870.0,109860.0,0.002]
[1756459052191,1.72962858,109870.0,109860.0,0.002]
[1756459052600,1.72962823,109870.0,109860.0,0.002]
[1756459053006,1.81792455,109870.0,109860.0,0.002]
[1756459053194,1.88792455,109870.0,109860.0,0.002]
[1756459054267,1.90739298,109870.0,109860.0,0.002]
[1756459054712,0.71048777,109870.0,109860.0,0.002]
[1756459054944,1.90739298,109870.0,109860.0,0.002]
[1756459055152,1.90739298,109870.0,109860.0,0.001]
[1756459055325,1.88792455,109870.0,109860.0,0.001]
[1756459055758,1.90737865,109870.0,109860.0,0.001]
[1756459055897,0.18208302,109840.0,109830.0,0.25593042]
[1756459056106,1.37898823,109840.0,109830.0,0.34422674]
[1756459056300,1.22070823,109840.0,109830.0,0.34633674]
[1756459056623,2.41761344,109840.0,109830.0,0.34633674]
[1756459056823,1.37898823,109840.0,109830.0,0.34633674]
[1756459057428,1.37898823,109840.0,109830.0,0.34833674]
[1756459057817,2.41761344,109840.0,109830.0,0.16623714]
[1756459058016,2.41957344,109840.0,109830.0,0.16623714]
[1756459058222,2.26129344,109840.0,109830.0,0.34833674]
[1756459058433,2.41957344,109840.0,109830.0,0.35033674]
[1756459058819,1.40010099,109840.0,109830.0,0.35033674]
[1756459059333,2.4387262,109840.0,109830.0,0.16823714]
[1756459059549,2.4406862,109840.0,109830.0,0.16823714]
[1756459059734,2.4406862,109840.0,109830.0,0.07467082]
[1756459060676,2.2824062,109840.0,109830.0,0.07467082]
[1756459060893,1.40206099,109840.0,109830.0,0.07678082]
[1756459061103,0.20319578,109840.0,109830.0,0.07994082]
[1756459061337,1.40010099,109840.0,109830.0,0.07994082]
[1756459062508,1.03862521,109840.0,109830.0,0.35261298]
[1756459062709,0.34036302,109840.0,109830.0,0.35033674]
[1756459062913,1.37898823,109840.0,109830.0,0.35033674]
[1756459063336,1.22070823,109840.0,109830.0,0.35033674]
[1756459063602,1.03862521,109840.0,109830.0,0.35033674]
[1756459063890,1.22070823,109840.0,109830.0,0.35033674]
[1756459064472,0.71736838,109850.0,109840.0,0.18208302]
[1756459064686,1.76443284,109850.0,109840.0,0.27564934]
[1756459065494,1.76443284,109850.0,109840.0,0.09356632]
[1756459065694,1.76443284,109850.0,109840.0,0.09684235]
[1756459065903,1.7832744,109850.0,109840.0,0.09456632]
[1756459066900,1.7832744,109850.0,109840.0,0.09556632]
[1756459067431,1.6249944,109850.0,109840.0,0.09556632]
[1756459067603,1.7832744,109850.0,109840.0,0.09556632]
[1756459069178,1.7832744,109850.0,109840.0,0.09029632]
[1756459069834,1.7813144,109850.0,109840.0,0.09770235]
[1756459070061,1.7832944,109850.0,109840.0,0.09029632]
[1756459070472,1.7832944,109850.0,109840.0,0.09033632]
[1756459070672,1.6250144,109850.0,109840.0,0.09033632]
[1756459071099,1.7832944,109850.0,109840.0,0.09033632]
[1756459071254,1.7832944,109850.0,109840.0,0.09231632]
[1756459071422,1.6250144,109850.0,109840.0,0.09546632]
[1756459071614,1.7832944,109850.0,109840.0,0.09546632]
[1756459072011,1.6230344,109850.0,109840.0,0.09546632]
[1756459072272,1.7813144,109850.0,109840.0,0.09774235]
[1756459072845,1.7832944,109850.0,109840.0,0.09546632]
[1756459073278,1.78267416,109850.0,109840.0,0.09546632]
[1756459073631,1.78273413,109850.0,109840.0,0.09546632]
[1756459073831,1.78273413,109850.0,109840.0,0.09033632]
[1756459074038,1.78075413,109850.0,109840.0,0.27982537]
[1756459074245,1.62247413,109850.0,109840.0,0.27754934]
[1756459074452,0.00846026,109850.0,109840.0,0.27754934]
[1756459074880,1.04708547,109850.0,109840.0,0.27754934]
[1756459076276,1.04708547,109850.0,109840.0,0.27554934]
[1756459076510,0.00846026,109850.0,109840.0,0.27854934]
[1756459076721,1.37862521,109860.0,109850.0,0.18206645]
[1756459076933,1.25843825,109870.0,109860.0,0.18204988]
[1756459077139,1.44208945,109870.0,109860.0,0.2723262]
[1756459077307,1.44208948,109870.0,109860.0,0.2754762]
[1756459077550,0.40346427,109870.0,109860.0,0.2754762]
[1756459077742,1.44208948,109870.0,109860.0,0.2754762]
[1756459077945,1.28384948,109870.0,109860.0,0.2754762]
[1756459078146,1.44208948,109870.0,109860.0,0.2754762]
[1756459079043,1.22227644,109870.0,109860.0,0.2754762]
[1756459079420,1.20533564,109870.0,109860.0,0.2754762]
[1756459079632,0.00847043,109870.0,109860.0,0.2754762]
[1756459080475,0.00847043,109870.0,109860.0,0.4357162]
[1756459080908,0.00847043,109870.0,109860.0,0.4377162]
[1756459081341,0.00847043,109870.0,109860.0,0.4377562]
[1756459083067,1.41619393,109880.0,109870.0,0.18203331]
[1756459083276,1.42663847,109880.0,109870.0,0.27550756]
[1756459083544,1.42461847,109880.0,109870.0,0.09347425]
[1756459083759,1.42659847,109880.0,109870.0,0.09061966]
[1756459083983,1.42659847,109880.0,109870.0,0.27265297]
[1756459084154,1.42659847,109880.0,109870.0,0.27037756]
[1756459084354,1.42659847,109880.0,109870.0,0.27137756]
[1756459084652,1.26839847,109880.0,109870.0,0.27650756]
[1756459084882,0.38797326,109880.0,109870.0,0.27650756]
[1756459085126,0.38599326,109880.0,109870.0,0.27650756]
[1756459085244,1.42659847,109880.0,109870.0,0.27137756]
[1756459085450,1.42659847,109880.0,109870.0,0.27650756]
[1756459085451,0.00846454,109880.0,109870.0,0.27650756]
[1756459086090,0.0004,109890.0,109880.0,0.18201674]
[1756459086303,0.0004,109890.0,109880.0,0.43166306]
[1756459086304,0.00885807,109890.0,109880.0,0.43166306]
[1756459086502,0.00885807,109890.0,109880.0,0.43364306]
[1756459086703,0.00885465,109890.0,109880.0,0.43364306]
[1756459088009,0.00885465,109890.0,109880.0,0.43864306]
[1756459088422,0.0004,109890.0,109880.0,0.43864306]
[1756459088661,0.0004,109890.0,109880.0,0.47897344]
[1756459091937,0.0004,109890.0,109880.0,0.48001344]
[1756459092711,0.0004,109890.0,109880.0,0.32077344]
[1756459093115,0.0004,109890.0,109880.0,0.47993344]
[1756459093926,0.0004,109890.0,109880.0,0.47989344]
[1756459094256,0.0004,109890.0,109880.0,0.32077344]
[1756459094456,1.22300539,109890.0,109880.0,0.47480344]
[1756459094637,1.04100521,109890.0,109880.0,0.32077344]
[1756459094841,1.20020521,109890.0,109880.0,0.32077344]
[1756459095272,1.04746535,109890.0,109880.0,0.32077344]
[1756459095483,1.20860535,109890.0,109880.0,0.32077344]
[1756459095906,0.16998014,109890.0,109880.0,0.32077344]
[1756459096109,1.20860535,109890.0,109880.0,0.32077344]
[1756459096356,0.16998014,109890.0,109880.0,0.32077344]
[1756459096566,1.20860535,109890.0,109880.0,0.32077344]
[1756459097778,0.16998014,109890.0,109880.0,0.32077344]
[1756459097979,1.20860535,109890.0,109880.0,0.32077344]
[1756459098346,1.20662535,109890.0,109880.0,0.32077344]
[1756459098722,1.04746535,109890.0,109880.0,0.32077344]
[1756459099152,0.00884014,109890.0,109880.0,0.32077344]
[1756459100205,0.0004,109890.0,109880.0,1.35939865]
[1756459104074,0.0004,109890.0,109880.0,0.72077344]
[1756459104457,0.00885771,109890.0,109880.0,1.75939865]
[1756459104599,0.0004,109890.0,109880.0,1.75939865]
[1756459105217,0.0004,109890.0,109880.0,0.72077344]
[1756459105454,0.00885947,109890.0,109880.0,1.75939865]
[1756459106655,0.00885947,109890.0,109880.0,1.91871865]
[1756459107800,0.00885947,109890.0,109880.0,1.92757865]
[1756459108005,0.00885947,109890.0,109880.0,1.92749865]
[1756459108794,0.00885947,109890.0,109880.0,1.91863865]
[1756459108992,0.00885947,109890.0,109880.0,1.75939865]
[1756459109198,0.00885947,109890.0,109880.0,0.72077344]
[1756459109397,0.00885947,109890.0,109880.0,1.91851865]
[1756459109906,0.00885947,109890.0,109880.0,0.87989344]
[1756459110082,0.00885947,109890.0,109880.0,0.48017344]
[1756459110328,1.04946468,109890.0,109880.0,0.47504344]
[1756459110533,0.01083947,109890.0,109880.0,0.47504344]
[1756459110726,0.01083947,109890.0,109880.0,0.31564344]
[1756459110931,0.01322947,109890.0,109880.0,0.47540344]
[1756459111133,0.01083947,109890.0,109880.0,0.47540344]
[1756459112063,0.00885947,109890.0,109880.0,0.48054344]
[1756459112815,0.00885947,109890.0,109880.0,0.48106344]
[1756459113024,0.01083947,109890.0,109880.0,0.31564344]
[1756459113224,0.01083947,109890.0,109880.0,0.48106344]
[1756459113622,0.00885947,109890.0,109880.0,0.48106344]
[1756459113848,0.00885947,109890.0,109880.0,0.49932344]
[1756459114059,0.00885947,109890.0,109880.0,0.48106344]
[1756459114297,0.01083947,109890.0,109880.0,0.48106344]
[1756459114635,0.00885947,109890.0,109880.0,0.48106344]
[1756459115403,0.00887251,109890.0,109880.0,0.48106344]
[1756459116165,0.01085251,109890.0,109880.0,0.47592344]
[1756459117212,0.01085251,109890.0,109880.0,0.47612344]
[1756459118116,0.01085251,109890.0,109880.0,0.48126344]
[1756459118240,0.01012905,109890.0,109880.0,0.48126344]
[1756459118644,0.01012905,109890.0,109880.0,0.47612344]
[1756459119038,0.01012905,109890.0,109880.0,0.47827344]
[1756459119241,0.01012905,109890.0,109880.0,0.48126344]
[1756459119690,0.00814905,109890.0,109880.0,0.48126344]
[1756459120270,0.01012905,109890.0,109880.0,0.48126344]
[1756459121007,0.00814905,109890.0,109880.0,0.48126344]
[1756459121667,0.00814905,109890.0,109880.0,0.48130344]
[1756459122459,0.01012905,109890.0,109880.0,0.48130344]
[1756459122717,0.01012905,109890.0,109880.0,0.47616344]
[1756459122911,0.01012905,109890.0,109880.0,0.48130344]
[1756459123246,0.00814905,109890.0,109880.0,0.48130344]
[1756459125971,1.22100927,109900.0,109890.0,0.18200018]
[1756459126177,1.23994169,109900.0,109890.0,0.2702965]
[1756459126377,0.01933312,109900.0,109890.0,0.2724465]
[1756459126607,1.05597833,109900.0,109890.0,0.2754365]
[1756459127014,1.05795833,109900.0,109890.0,0.2754365]
[1756459127176,0.01933312,109900.0,109890.0,0.2754365]
[1756459127597,0.2024893,109900.0,109890.0,0.2754365]
[1756459127812,1.38076164,109910.0,109890.0,0.2702965]
[1756459127988,1.22178139,109900.0,109890.0,0.2702965]
[1756459128191,1.22060883,109900.0,109890.0,0.09029632]
[1756459128398,1.22060883,109900.0,109890.0,0.25021632]
[1756459128606,1.22060883,109900.0,109890.0,0.4322165]
[1756459128806,1.22060883,109900.0,109890.0,0.25121632]
[1756459129086,1.22060883,109900.0,109890.0,0.09129632]
[1756459129323,0.18198362,109900.0,109890.0,0.09129632]
[1756459129506,1.22060883,109900.0,109890.0,0.09129632]